Cogmind - Beta 16 @@@ ROGUE MODE // 2025.12.26 @ 22:14:48 Player: teh_pwnerer Result: Destroyed by Y-45 Defender with Beam Rifle Performance ------------- Evolutions (2) 1000 Regions Visited (4) 800 Robots Destroyed (24) 120 Value Destroyed (548) 548 Prototype IDs (1) 20 Alien Tech Used (0) 0 Bonus (0) 0 TOTAL SCORE: 2488 Bonus ------- None Cogmind --------- Core Integrity 0/550 Matter 258/300 Energy 76/100 System Corruption 4% Temperature Cool (9) Movement Core (50) Location -8/Materials Parts ------- > --- POWER (3) -------- (None) > --- PROPULSION (2) --- (None) > --- UTILITY (3) ------ Targeting Computer > --- WEAPON (3) ------- Heavy Assault Rifle > --- INVENTORY (5) ---- Signal Interpreter Heavy EM Pulse Gun Peak State ------------ > --- POWER ------------ (None) > --- PROPULSION ------- Aluminum Leg Aluminum Leg > --- UTILITY ---------- Visual Processing Unit Targeting Computer System Shield > --- WEAPON ----------- Improved EM Shotgun Improved EM Shotgun Light Assault Rifle > --- INVENTORY -------- Signal Interpreter Heavy EM Pulse Gun Improved EM Shotgun [Rating: 15] Favorites ----------- Power Light Ion Engine Engine Light Ion Engine Propulsion Aluminum Leg Leg Aluminum Leg Wheel Compact Wheel Flight Unit Flight Unit Utility Targeting Computer Device Heat Sink Processor Targeting Computer Hackware System Shield Weapon Light Assault Rifle Energy Gun Improved EM Shotgun Ballistic Gun Light Assault Rifle Ballistic Cannon Light Cannon Special Weapon Mining Laser Build | -11 -10 -10 -9 -8 ------- Run | Yrd Mat Min Mat Mat Slots Evolved 4 | . . . 2 2 Power 2 | . . . 2 . Propulsion . | . . . . . Utility 1 | . . . . 1 Weapon 1 | . . . . 1 Parts Attached 24 | 2 12 1 6 3 Power 2 | . 2 . . . Engine 2 | . 2 . . . Core . | . . . . . Reactor . | . . . . . Propulsion 6 | . 3 1 2 . Treads . | . . . . . Leg 2 | . . . 2 . Wheel 3 | . 3 . . . Hover . | . . . . . Flight 1 | . . 1 . . Utility 4 | . 3 . . 1 Device 1 | . 1 . . . Storage . | . . . . . Processor 2 | . 2 . . . Hackware 1 | . . . . 1 Protection . | . . . . . Artifact . | . . . . . Weapon 12 | 2 4 . 4 2 Energy Gun 5 | . 2 . 2 1 Energy Cannon . | . . . . . Ballistic Gun 5 | 2 . . 2 1 Ballistic Cannon 1 | . 1 . . . Launcher . | . . . . . Special Weapon 1 | . 1 . . . Impact Weapon . | . . . . . Slashing Weapon . | . . . . . Piercing Weapon . | . . . . . Special Melee Weapon . | . . . . . Unidentified Prototypes 1 | . . . 1 . Parts Lost 17 | . 4 2 3 8 Power 1 | . 1 . . . Propulsion 6 | . 1 2 1 2 Utility 2 | . . . . 2 Weapon 8 | . 2 . 2 4 Highest Loss Streak 8 | . 4 2 3 8 To Critical Strikes . | . . . . . Average Backups 3 | . 2 3 4 2 Power . | . . . . . Propulsion . | . . . . . Utility . | . . 1 1 1 Weapon 2 | . 1 2 2 1 Tool/Special . | . . . . . Unused Backups 2 | . . . . 2 Power . | . . . . . Propulsion . | . . . . . Utility 1 | . . . . 1 Weapon 1 | . . . . 1 Tool/Special . | . . . . . Average Slot Usage (%) 66 | . 71 75 61 58 Engine 3 | . 10 3 . . Leg 8 | . . . 16 14 Wheel 8 | . 25 4 . . Flight 2 | . . 10 2 . Device 1 | . 4 . . . Processor 16 | . 2 28 22 17 Energy Gun 8 | . 7 1 9 14 Ballistic Gun 9 | . 14 . 9 7 Ballistic Cannon 3 | . 2 14 1 . Special Weapon 3 | . 2 12 1 . Peak Build Rating 15 | 2 8 8 10 15 Average Rating 7 | 1 5 6 8 11 On Entrance 5 | . 2 8 6 9 Avg Prop Armor Cover (%) . | . . . . . Naked Turns . | . . . . . Heaviest Build 10 | 3 10 9 6 7 Greatest Support 32 | 3 32 32 20 20 Greatest Overweight (x) 2 | . . 2 1 . Average Overweight (x) . | . . . . . Largest Inventory Capacity 5 | 5 5 5 5 5 Average Capacity 5 | 5 5 5 5 5 Most Carried 5 | 2 4 4 5 4 Average Carried 3 | . 2 3 4 2 Final Capacity 5 | 5 5 5 5 5 Final Carried 4 | 1 3 4 4 3 Class Distribution -------------------- 60% | Mutant 28% | Scavenger-Mutant 11% | Scavenger-Gunner Dominant Class ---------------- Mutant | -10/Materials Mutant | -10/Mines Scavenger-Mutant | -9/Materials Scavenger-Gunner | -8/Materials Resources | -11 -10 -10 -9 -8 ----------- Run | Yrd Mat Min Mat Mat Matter Collected 514 | 190 121 . 124 79 Remotely . | . . . . . Salvage Created 673 | . 135 19 156 363 Parts 58 | . 8 5 18 27 Haulers Intercepted . | . . . . . Recyclers Shooed 1 | . . . 1 . Parts Field Recycled . | . . . . . Retrieved Matter . | . . . . . Parts Self-Destructed . | . . . . . Prevented . | . . . . . Parts Restored . | . . . . . Kills | -11 -10 -10 -9 -8 ------- Run | Yrd Mat Min Mat Mat Combat Hostiles Destroyed 21 | . 3 3 8 7 Melee 2 | . . . . 2 Guns 12 | . 3 . 7 2 Cannons 4 | . . 3 1 . AOE 3 | . . . . 3 Classes Destroyed 5 | . 2 1 . 2 Recycler 1 | . . . . 1 Watcher 2 | . 1 . 1 . Swarmer 12 | . . 3 7 2 Grunt 7 | . 3 . 1 3 Sentry 2 | . . . . 2 Best Kill Streak 8 | . 2 3 8 5 Combat Bots Only 8 | . 2 3 8 5 Max Kills in Single Turn 3 | . 1 1 1 3 Gunslinging . | . . . . . Exploded 2 | . . . . 2 Melee 1 | . . . . 1 Uniques/NPCs Destroyed . | . . . . . Combat | -11 -10 -10 -9 -8 -------- Run | Yrd Mat Min Mat Mat Hostile Shots Fired 228 | . 39 30 63 96 Missed 64 | . 5 7 22 30 Hits 164 | . 34 23 41 66 Projectile 164 | . 34 23 41 66 Critical Strikes 4 | . 2 . 1 1 Damage Taken 1962 | . 442 193 332 995 Core 850 | . 106 73 113 558 Absorbed by Shields . | . . . . . Core Remaining (%) 66 | 100 . 28 71 . Volleys Fired 75 | . 28 8 25 14 Largest 3 | . 2 2 2 3 Hottest 145 | . 100 130 145 110 Shots Fired 120 | . 48 15 35 22 Gun 97 | . 41 3 31 22 Cannon 11 | . 3 8 . . Launcher . | . . . . . Special 12 | . 4 4 4 . Kinetic 73 | . 31 8 21 13 Thermal 34 | . 17 7 10 . Explosive . | . . . . . Electromagnetic 13 | . . . 4 9 Robot Hit Streak 6 | . 6 2 3 6 Robot Miss Streak 3 | . 3 3 3 3 Penetration Max . | . . . . . Secondary Targets 1 | . 1 . . . Max Gunslinging Chain 1 | . 1 . . . Shots Hit Robots 65 | . 23 6 18 18 Core Hits 47 | . 10 3 13 21 Critical Kills . | . . . . . Critical Parts Destroyed 1 | . 1 . . . Critical Strikes 1 | . 1 . . . Destroy 1 | . 1 . . . Melee Attacks . | . . . . . Impact . | . . . . . Slashing . | . . . . . Piercing . | . . . . . Sneak Attacks . | . . . . . Combat Hostiles . | . . . . . Follow-up Attacks . | . . . . . Damage Inflicted 1237 | . 332 105 221 579 Guns 731 | . 295 . 193 243 Cannons 118 | . 37 81 . . Explosions 300 | . . . . 300 Melee . | . . . . . Ramming 40 | . . . 4 36 Kinetic 525 | . 247 81 82 115 Thermal 334 | . 85 24 86 139 Explosive 161 | . . . . 161 Electromagnetic 177 | . . . 49 128 Impact . | . . . . . Slashing . | . . . . . Piercing . | . . . . . Highest Corruption 4 | . . . . 4 Average Corruption 4 | . . . . 4 Corruption Purged . | . . . . . Corruption Blocked . | . . . . . Overload Shots . | . . . . . Overflow Damage 6 | . . . . 6 Projectiles . | . . . . . Explosions 6 | . . . . 6 Melee . | . . . . . Knockbacks 2 | . 1 1 . . Impact . | . . . . . Kinetic 2 | . 1 1 . . Secondary . | . . . . . Self-Inflicted Damage 128 | . . . . 128 Shots 2 | . . . . 2 Rammed 12 | . . . . 12 Targets Rammed 14 | . . . 2 12 Kicked 2 | . . . 2 . Crushed . | . . . . . Highest Temperature 117 | . 30 80 32 117 Average Temperature 25 | . 12 30 10 58 Received Heat Transfer 651 | . 306 . 12 333 Siege Activations . | . . . . . Martial Activations . | . . . . . Shielding Activations . | . . . . . Robots Disrupted . | . . . . . Combat Hostiles . | . . . . . Robots Corrupted . | . . . . . Combat Hostiles . | . . . . . Parts Fried . | . . . . . Impact Corruptions . | . . . . . Robots Melted . | . . . . . Combat Hostiles . | . . . . . Parts Melted 1 | . . . 1 . Heat Transferred 658 | . 223 50 235 150 Parts Sabotaged . | . . . . . Parts Stolen . | . . . . . Parts Stripped . | . . . . . Power Chain Reactions 2 | . . . . 2 Alert | -11 -10 -10 -9 -8 ------- Run | Yrd Mat Min Mat Mat Maximum Alert Level . | . . . . . Low Security (%) 100 | 100 100 100 100 100 Level 1 . | . . . . . Level 2 . | . . . . . Level 3 . | . . . . . Level 4 . | . . . . . Level 5 . | . . . . . High Security . | . . . . . Max Security . | . . . . . Peak Influence 137 | . 75 52 136 137 Initial 12 | . . 12 . . Average 26 | . 19 17 46 8 Influence Increases 632 | . 121 70 220 221 Destroy 0b10 Robot/C 420 | . 60 60 160 140 Destroy 0b10 Robot/NC 15 | . 5 . 5 5 Destroy Leader 84 | . 22 10 22 30 Disable Machine 15 | . . . . 15 Destroy Structure 38 | . 4 . 3 31 Partial Spotted 30 | . 15 . 15 . Lose Combat Pursuer 30 | . 15 . 15 . Influence Decreases 495 | . 88 103 220 84 Entered New Map 21 | . . 21 . . Time Decay 350 | . 78 62 190 20 Lost Part 124 | . 10 20 30 64 Squads Dispatched 3 | . 1 . . 2 Investigation 1 | . . . . 1 Extermination . | . . . . . Reinforcement 1 | . 1 . . . Assault . | . . . . . Garrison 1 | . . . . 1 Intercept . | . . . . . Searches Triggered . | . . . . . Construction Impeded . | . . . . . Haulers Reinforced . | . . . . . Active Scanning Responses . | . . . . . Cargo Convoy Interrupts . | . . . . . Stealth | -11 -10 -10 -9 -8 --------- Run | Yrd Mat Min Mat Mat Distress Signals 3 | . 2 . . 1 Communications Jammed . | . . . . . Distress Signals . | . . . . . Times Spotted 39 | . 12 3 11 13 Peak Tracking Total 11 | . 5 3 4 11 Tactical Retreats 2 | . 1 . 1 . Traps | -11 -10 -10 -9 -8 ------- Run | Yrd Mat Min Mat Mat Traps Triggered . | . . . . . Indirectly . | . . . . . Trap Hack Attempts . | . . . . . Triggered . | . . . . . Disarmed . | . . . . . Reprogrammed . | . . . . . Reused . | . . . . . Traps Extracted . | . . . . . Installed . | . . . . . Triggered . | . . . . . Machines | -11 -10 -10 -9 -8 ---------- Run | Yrd Mat Min Mat Mat Machines Disabled 1 | . . . . 1 Max in Single Turn 1 | . . . . 1 Machines Repaired . | . . . . . Machines Dismantled . | . . . . . Machines Sabotaged . | . . . . . Overloaded Fab Kills . | . . . . . Hacking | -11 -10 -10 -9 -8 --------- Run | Yrd Mat Min Mat Mat Machines Accessed 1 | . 1 . . . Terminals 1 | . 1 . . . Fabricators . | . . . . . Repair Stations . | . . . . . Recycling Units . | . . . . . Scanalyzers . | . . . . . Garrison Access . | . . . . . Total Hacks 3 | . 3 . . . Successful 1 | . 1 . . . Failed 2 | . 2 . . . Catastrophic . | . . . . . Database Lockouts . | . . . . . Manual . | . . . . . Terminals 3 | . 3 . . . Fabricators . | . . . . . Repair Stations . | . . . . . Recycling Units . | . . . . . Scanalyzers . | . . . . . Garrison Access . | . . . . . Terminal Hacks 1 | . 1 . . . Zone Layout 1 | . 1 . . . Fabricator Hacks . | . . . . . Repair Station Hacks . | . . . . . Recycling Unit Hacks . | . . . . . Scanalyzer . | . . . . . Garrison Access Hacks . | . . . . . Unauthorized Hacks . | . . . . . Terminals . | . . . . . Fabricators . | . . . . . Repair Stations . | . . . . . Recycling Units . | . . . . . Scanalyzers . | . . . . . Garrison Access . | . . . . . Data Cores Recovered . | . . . . . Used . | . . . . . Hacking Detections 1 | . 1 . . . Full Trace Events . | . . . . . Feedback Events . | . . . . . Feedback Blocked . | . . . . . Robot Schematics Acquired . | . . . . . Robots Built . | . . . . . Authchips . | . . . . . Time . | . . . . . Total Robot Build Rating . | . . . . . Part Schematics Acquired . | . . . . . Parts Built . | . . . . . Authchips . | . . . . . Time . | . . . . . Total Part Build Rating . | . . . . . Part Studies Acquired . | . . . . . Parts Repaired . | . . . . . Time . | . . . . . Parts Recycled . | . . . . . Recycled Matter . | . . . . . Retrieved Matter . | . . . . . Retrieved Components . | . . . . . Parts Scanalyzed . | . . . . . Part Schematics Acquired . | . . . . . Parts Damaged . | . . . . . Bothacking | -11 -10 -10 -9 -8 ------------ Run | Yrd Mat Min Mat Mat Used RIF Installer . | . . . . . Robots Hacked . | . . . . . Non-combat . | . . . . . Combat . | . . . . . Robot Hacks Applied . | . . . . . Relay Couplers Released . | . . . . . Fabnet Peak Effective % . | . . . . . Robots Rewired . | . . . . . Allies Hacked . | . . . . . Hacks Repelled . | . . . . . Allies | -11 -10 -10 -9 -8 -------- Run | Yrd Mat Min Mat Mat Total Allies 2 | . . 2 . . Largest Group 2 | . . 2 . . Highest-Rated Group 41 | . . 41 . . Highest-Rated Ally 31 | . . 31 . . Total Orders . | . . . . . Ally Attacks . | . . . . . Total Damage . | . . . . . Kills . | . . . . . Allies Corrupted . | . . . . . Allies Melted . | . . . . . Intel | -11 -10 -10 -9 -8 ------- Run | Yrd Mat Min Mat Mat Active Infowar (turns) 935 | . 19 197 520 199 Optics 935 | . 19 197 520 199 Robot Analysis Total . | . . . . . Derelict Logs Recovered 1 | . . 1 . . Drone Launches . | . . . . . Drone Recoveries . | . . . . . Exploration | -11 -10 -10 -9 -8 ------------- Run | Yrd Mat Min Mat Mat Turns Passed 1413 | 46 434 197 520 216 Spaces Moved 1107 | 69 255 349 324 110 Core 122 | 69 19 2 4 28 Treads . | . . . . . Legs 316 | . . . 234 82 Wheels 238 | . 236 2 . . Hover . | . . . . . Flight 431 | . . 345 86 . Fastest Speed 40 | 50 50 40 40 50 Average Speed 78 | 50 96 40 102 102 Slowest Speed 150 | 50 100 150 120 120 Overloaded Moves . | . . . . . Propulsion Burnouts . | . . . . . Robots Hopped 2 | . . 1 1 . Potential Cave-ins . | . . . . . Cave-ins Triggered . | . . . . . Exploration Rate (%) 27 | 3 43 58 22 13 Regions Visited 4 Branch Regions 1 Pre-discovered Areas . | . . . . . Known Exits Taken 1 | . . . 1 . Unknown Exits Taken 3 | 1 1 1 . . Scrap Searched 1 | . . 1 . . Spaces Dug 6 | . 3 . 3 . Terrain Destroyed 46 | . 4 . 3 39 Melee . | . . . . . Projectile 7 | . 4 . 3 . AOE 39 | . . . . 39 Terrain Rammed . | . . . . . Walls Destroyed . | . . . . . Machines Disabled . | . . . . . Actions | -11 -10 -10 -9 -8 --------- Run | Yrd Mat Min Mat Mat Total 1514 | 80 388 378 470 198 Wait 259 | 7 75 18 103 56 Move 1099 | 68 254 346 321 110 Hop 2 | . . 1 1 . Pick Up 25 | 3 12 2 6 2 Fast Attach 1 | . . . 1 . Attach 22 | 2 11 1 4 4 Detach 1 | . 1 . . . Swap 11 | . 6 1 4 . Drop 5 | . 1 1 3 . Fire 75 | . 28 8 25 14 Melee . | . . . . . Ram 12 | . . . . 12 Kick 2 | . . . 2 . Crush . | . . . . . Escape Stasis . | . . . . . Rewire . | . . . . . Trap . | . . . . . Miscellaneous . | . . . . . Route ------- -11/Scrapyard -10/Materials (discovered 2 exits: [*Min] / [*Sub]) -10/Mines -9/Materials (discovered 5 exits: *Mat x2 / Min / *Sto x2) -8/Materials History --------- Turn | Location | Event 6 | -11/Scrapyard | Discovered new exit (range 16) 47 | -11/Scrapyard | Entered Materials 302 | -10/Materials | Build established: Mutant 340 | -10/Materials | Lost 4 parts (1p1n2w) 426 | -10/Materials | Discovered new exit (range 15) 466 | -10/Materials | Discovered new exit (range 9) 481 | -10/Materials | Entered Mines 486 | -10/Mines | Core integrity fell below 50% 495 | -10/Mines | Met a Derelict bent on vengeance 585 | -10/Mines | Learned 8 Materials zone layouts 635 | -10/Mines | Discovered new exit (range 18) 678 | -10/Mines | Entered Materials 678 | -9/Materials | Evolved 2 slots: Power x2 679 | -9/Materials | Identified exit to Storage 679 | -9/Materials | Identified exit to Mines 679 | -9/Materials | Identified exit to Materials 826 | -9/Materials | Lost 3 parts (1n2w) 828 | -9/Materials | Destroyed 8 combat bots 1137 | -9/Materials | Build established: Scavenger-Mutant 1198 | -9/Materials | Entered another Materials area 1198 | -8/Materials | Evolved 2 slots: Utility x1, Weapon x1 1357 | -8/Materials | Garrison activated, responded to threat 1397 | -8/Materials | Core integrity fell below 50% 1408 | -8/Materials | Core integrity fell below 20% 1414 | -8/Materials | Destroyed by Y-45 Defender with Beam Rifle Last Messages --------------- Destabilizing: Short circuit. Slammed into Y-45 Defender. Broken Visual Processing Unit destroyed. System corrupted by crushing effect (+4). Slammed into Y-45 Defender. Y-45 Defender destroyed. Acquired 60 matter. Chain reaction triggered in Lgt. Ion Engine. S-10 Pest destroyed. Y-45 Defender destroyed. Nuclear Reactor explodes. G-47 Trooper destroyed. Imp. EM Shotgun destroyed. Destroyed Imp. EM Shotgun. K-01 Serf collects debris. The unstable cave ceiling collapses. Acquired Hvy. Assault Rifle. K-01 Serf collects debris. The unstable cave ceiling collapses. U-05 Engineer lays Concrete. Map ----- +----------------------------------------------------+ | ?????????????????????????????????????????????????? | | ?????????????????????????????????????????????????? | | ?????????????????????????????????????????????????? | | ?????????????????????????????????????????????????? | | ?????????????????????????????????????????????????? | | ?????????????????????????????????????????????????? | | ???????????????????????????? #??????????????????? | | ??????????????????????????? #??????????????????? | | ??????????????????????????? #??????????????????? | | ######????????????????????? #???##?????????????? | | #????????????????????? #?? ??????????????? | | "" #????????????????????? #?? ???????????????? | | """ #????????????########? #? ????????????????? | | """ #????????????# #? # ????????????????? | | """ #????????????#""" #? # ?????????????????? | | "" #?######?????#""" ## +??????????????????? | | ###!!!!##????#""" ##a #??????????????????? | | ##! !#????#""" ## #??????????????????? | | ## #????# ## ##?????????????????? | | #+##### #########+###! #?????????????????? | | #?????????????????? | | T +?????????????????? | | #?????????????????? | | ##########/############### #?????????????????? | | ??????# #???### # ##?????????????????? | | ??????# """#???# =[=@# #??????????????????? | | ??????# """#???# ! ! #####+#????????????? | | ??????# """#??# [* * == ????? | | ??????# #??# %%* #####+#????????????? | | ??????# """#??# Y #??????????????????? | | ??????# """#??# g #??????????????????? | | ??????# """#??## #??????????????????? | | ??????# #???#### %= #??????????????????? | | ??????##########????# # #u #??????????????????? | | ????????????????????####?##k #??????????????????? | | ??????????????????????????# #??????????????????? | | ??????????????????????????# k#??????????????????? | | ?????????????????????????##% ##?????????????????? | | ?????????????????????????#! k;#?????????????????? | | ?????????????????????????#" % "#?????????????????? | | ?????????????????????????#" "#?????????????????? | | ?????????????????????????#" %! ?????????????????? | | ?????????????????????????##=% ????????????????? | | ??????????????????????????# ???????????????? | | ??????????????????????????#%= ??????????????? | | ??????????????????????????[* ?????????????? | | ?????????????????????????? ????????????? | | ?????????????????????????? ???????????? | | ??????????????????????????###### ???????????? | | ???????????????????????????????? ??????????? | +----------------------------------------------------+ Best States ------------- Heat Dissipation 35 Energy Generation 10 Energy Capacity 250 Matter Stores 274 Matter Capacity 300 Sight Range 18 Terrain Scan Density 10 Evasion (%) 62 Targeting Accuracy 5 Defensive Hacking 10 Item Schematics ----------------- None Robot Schematics ------------------ None Fabricated ------------ Nothing Repaired ---------- Nothing Studied --------- None Alien Tech Used ----------------- None Achievements -------------- Fist Fight Spot Them First Challenges ------------ None Game ------ Seed HelicalMomentumLoader Manual? 0 Play Time 00:31:27 Cumulative 3.8 hours Start 2025.12.26 @ 19:34:49 End 2025.12.26 @ 22:14:48 Sessions 2 Manual Loads 0 Difficulty Rogue Special Mode None Game No. 6 Rogue 6 Adventurer 0 Explorer 0 Win Type - Total 0 Types 0/0/0/0/0/0/0/0/0/0 Lore% 0 Gallery% 5 Achievement% 5 Wizard Run 0 Options --------- Layout 1 ASCII 0 Keyboard 0 Movement Mouse Keybinds 0 Fullscreen 1 Font 24/Smallcaps Map View 50x35 Zoom Use 0% Tactical HUD 0 Map Filters NONE Filters NONE Steam 1 RUN: c2f9a8a3-fd73-4441-b49c-ac415f96a46a